bitfinex/quotes_BTCUSD_20250422
["timestamp","ask_amount","ask_price","bid_price","bid_amount"]
[1745287066777,0.01132246,88320.0,88316.0,0.01132297]
[1745287066951,0.23777633,88319.0,88315.0,0.34]
[1745287067959,0.23777633,88319.0,88316.0,0.001]
[1745287068360,0.23777633,88319.0,88315.0,0.34]
[1745287068679,0.23777633,88319.0,88315.0,0.341]
[1745287069285,0.01132272,88318.0,88315.0,0.341]
[1745287069784,0.01132272,88318.0,88316.0,0.00707047]
[1745287070196,0.01132272,88318.0,88317.0,0.00707047]
[1745287070403,0.001,88319.0,88318.0,0.2264544]
[1745287070721,0.001,88319.0,88318.0,0.57352487]
[1745287071119,0.0113222,88322.0,88319.0,0.34]
[1745287071429,0.0113222,88322.0,88320.0,0.00707047]
[1745287071925,0.0113222,88322.0,88319.0,0.34]
[1745287071926,0.0113222,88322.0,88321.0,0.01750088]
[1745287072856,0.0113222,88322.0,88321.0,0.00707008]
[1745287073412,0.0123222,88322.0,88321.0,0.00707008]
[1745287073940,0.0143222,88322.0,88321.0,0.01749912]
[1745287074950,0.0143222,88322.0,88321.0,0.00707008]
[1745287075931,0.003,88322.0,88321.0,0.00707008]
[1745287077072,0.003,88322.0,88321.0,0.01750167]
[1745287079925,0.003,88322.0,88321.0,0.01043159]
[1745287080742,0.01132246,88320.0,88317.0,0.01132284]
[1745287080910,0.01132246,88320.0,88315.0,0.3513231]
[1745287080911,0.01132272,88318.0,88315.0,0.3513231]
[1745287081464,0.01132272,88318.0,88315.0,0.34]
[1745287082584,0.22645953,88316.0,88315.0,0.34]
[1745287082845,0.22645953,88316.0,88310.0,0.01132374]
[1745287082846,0.22647235,88311.0,88310.0,0.34]
[1745287083049,0.01132336,88313.0,88310.0,0.34]
[1745287084029,0.22647658,88310.0,88308.0,0.34]
[1745287084259,0.01132361,88311.0,88308.0,0.34]
[1745287084479,0.01132361,88311.0,88310.0,0.001]
[1745287084705,0.01132361,88311.0,88310.0,0.002]
[1745287084943,0.23778731,88315.0,88311.0,0.01132361]
[1745287085159,0.0113231,88315.0,88313.0,0.34]
[1745287086301,0.0113231,88315.0,88312.0,0.01132348]
[1745287086520,0.01132246,88320.0,88312.0,0.01132348]
[1745287086722,0.23777725,88318.0,88315.0,0.0113231]
[1745287086977,0.22643901,88324.0,88320.0,0.01132246]
[1745287087203,0.01132233,88321.0,88318.0,0.35132272]
[1745287087420,0.22644927,88320.0,88318.0,0.34]
[1745287088158,0.01132284,88317.0,88315.0,0.34]
[1745287088365,0.22645953,88316.0,88315.0,0.34]
[1745287088976,0.01132323,88314.0,88311.0,0.01132361]
[1745287089582,0.01132323,88314.0,88312.0,0.34]
[1745287089988,0.23779029,88314.0,88312.0,0.34]
[1745287090797,0.01132336,88313.0,88310.0,0.35132374]
[1745287091006,0.01132336,88313.0,88312.0,0.001]
[1745287092245,0.23779258,88313.0,88310.0,0.001]
[1745287092711,0.23779258,88313.0,88310.0,0.002]
[1745287093147,0.01132336,88313.0,88310.0,0.002]
[1745287093430,0.22646978,88312.0,88310.0,0.001]
[1745287094277,0.22646978,88312.0,88310.0,0.002]
[1745287094634,0.01132336,88313.0,88310.0,0.002]
[1745287094842,0.01132336,88313.0,88310.0,0.003]
[1745287095037,0.01132336,88313.0,88310.0,0.24079854]
[1745287095248,0.2377837,88316.0,88312.0,0.34]
[1745287095515,0.0113231,88315.0,88312.0,0.35132348]
[1745287095888,0.27326552,88314.0,88312.0,0.34]
[1745287096064,0.22646552,88314.0,88312.0,0.34]
[1745287096454,0.23778875,88314.0,88310.0,0.35332374]
[1745287096655,0.23778875,88314.0,88312.0,0.001]
[1745287097191,0.01132323,88314.0,88310.0,0.35232374]
[1745287097796,0.01132323,88314.0,88310.0,0.35132374]
[1745287098004,0.01132323,88314.0,88310.0,0.35232374]
[1745287098403,0.01132323,88314.0,88311.0,0.01132361]
[1745287099021,0.01132323,88314.0,88312.0,0.001]
[1745287099441,0.01132323,88314.0,88311.0,0.01132361]
[1745287099634,0.01132259,88319.0,88314.0,0.01132323]
[1745287099839,0.01132272,88318.0,88314.0,0.01132323]
[1745287100065,0.01132284,88317.0,88314.0,0.01132323]
[1745287100277,0.0113222,88322.0,88314.0,0.01132323]
[1745287100482,0.01132246,88320.0,88316.0,0.01132297]
[1745287100682,0.01132259,88319.0,88316.0,0.01132297]
[1745287102031,0.01132259,88319.0,88315.0,0.23778264]
[1745287102347,0.01132259,88319.0,88309.0,0.37170241]
[1745287102348,0.22646602,88314.0,88309.0,0.15655066]
[1745287102544,0.22646602,88314.0,88310.0,0.34]
[1745287102750,0.22647134,88312.0,88310.0,0.34]
[1745287103175,0.0113231,88315.0,88310.0,0.56647457]
[1745287103381,0.01132323,88314.0,88310.0,0.35132374]
[1745287103603,0.23779509,88312.0,88309.0,0.341]
[1745287103814,0.23779509,88312.0,88310.0,0.001]
[1745287104186,0.22647408,88311.0,88310.0,0.001]
[1745287104371,0.22647408,88311.0,88310.0,0.002]
[1745287104574,0.22647408,88311.0,88310.0,0.001]
[1745287105468,0.21488413,88311.0,88310.0,0.002]
[1745287105843,0.21488413,88311.0,88310.0,0.003]
[1745287106045,0.21488413,88311.0,88310.0,0.002]
[1745287106459,0.21488413,88311.0,88310.0,0.003]
[1745287110528,0.23779509,88312.0,88310.0,0.003]
[1745287110736,0.01132348,88312.0,88310.0,0.003]
[1745287111431,0.01132348,88312.0,88310.0,0.002]
[1745287111853,0.0113231,88315.0,88312.0,0.01132348]
[1745287112272,0.0113231,88315.0,88311.0,0.34]
[1745287112664,0.23778709,88315.0,88311.0,0.34]
[1745287112869,0.01132323,88314.0,88311.0,0.34]
[1745287113094,0.01132323,88314.0,88312.0,0.001]
[1745287113498,0.0113231,88315.0,88312.0,0.01232348]
[1745287113731,0.01132284,88317.0,88313.0,0.23779058]
[1745287113961,0.23778006,88317.0,88313.0,0.23779058]
[1745287114165,0.01132297,88316.0,88313.0,0.01132336]
[1745287114779,0.01132246,88320.0,88311.0,0.56747056]
[1745287114780,0.01132169,88326.0,88322.0,0.22644263]
[1745287115022,0.23774264,88331.0,88325.0,0.01132182]
[1745287115156,0.01132143,88328.0,88321.0,0.22644451]
[1745287115361,0.01132169,88326.0,88323.0,0.01132207]
[1745287115779,0.01132195,88324.0,88320.0,0.35132246]
[1745287115978,0.01132195,88324.0,88321.0,0.00707007]
[1745287116301,0.01132169,88326.0,88321.0,0.02884665]
[1745287116536,0.002,88331.0,88328.0,0.22642876]
[1745287116714,0.002,88331.0,88330.0,0.34]
[1745287117263,0.002,88331.0,88330.0,0.34707007]
[1745287117467,0.01132015,88338.0,88332.0,0.35132092]
[1745287117468,0.01132041,88336.0,88332.0,0.35132092]
[1745287117717,0.01132054,88335.0,88332.0,0.34]
[1745287117923,0.22641544,88334.0,88333.0,0.00707007]
[1745287118321,0.22641544,88334.0,88333.0,0.03290324]
[1745287118482,0.22641544,88334.0,88333.0,0.00707007]
[1745287118693,0.22641544,88334.0,88333.0,0.01752432]
[1745287119824,0.001,88334.0,88333.0,0.01752432]
[1745287120059,0.001,88334.0,88333.0,0.34]
[1745287120264,0.001,88334.0,88333.0,0.36627432]
[1745287120439,0.001,88334.0,88333.0,0.34]
[1745287120798,0.002,88334.0,88333.0,0.34]
[1745287121543,0.002,88334.0,88333.0,0.35043827]
[1745287121979,0.002,88334.0,88333.0,0.35750762]
[1745287123048,0.002,88334.0,88333.0,0.38274354]
[1745287123689,0.002,88334.0,88333.0,0.49649948]
[1745287123908,0.002,88334.0,88333.0,0.51104033]
[1745287124107,0.002,88334.0,88333.0,0.56094033]
[1745287124324,0.001,88334.0,88333.0,0.56941432]
[1745287124517,0.000847,88349.0,88346.0,0.35131913]
[1745287124731,0.000984,88349.0,88346.0,0.35131913]
[1745287124936,0.000984,88349.0,88347.0,0.22864371]
[1745287125184,0.000984,88349.0,88347.0,0.349469]
[1745287125363,0.000984,88349.0,88348.0,0.0495]
[1745287125531,0.000984,88349.0,88348.0,0.51258861]
[1745287125744,0.000984,88349.0,88348.0,0.51032529]
[1745287125943,0.000984,88349.0,88348.0,0.52076356]
[1745287126961,0.000984,88349.0,88348.0,0.52176356]
[1745287127827,0.000984,88349.0,88348.0,0.35850762]
[1745287131310,0.00814865,88356.0,88352.0,0.23768482]
[1745287131514,0.00814865,88356.0,88353.0,0.01131823]
[1745287131939,0.00814865,88356.0,88354.0,0.00706935]
[1745287132130,0.00814865,88356.0,88355.0,0.01043827]
[1745287132329,0.01216459,88358.0,88355.0,0.01043827]
[1745287132549,0.001,88356.0,88355.0,0.35043827]
[1745287132925,0.001,88356.0,88355.0,0.3575055]
[1745287133137,0.002,88356.0,88355.0,0.3575055]
[1745287133550,0.000847,88358.0,88356.0,0.22635701]
[1745287133752,0.001847,88358.0,88357.0,0.34706723]
[1745287134147,0.001847,88358.0,88357.0,0.3575055]
[1745287134942,0.002847,88358.0,88357.0,0.3575055]
[1745287135862,0.22919888,88358.0,88357.0,0.0175055]
[1745287136058,0.001847,88358.0,88357.0,0.0175055]
[1745287136405,0.002847,88358.0,88357.0,0.0175055]
[1745287137431,0.002847,88358.0,88357.0,0.01043827]
[1745287137638,0.048947,88358.0,88357.0,0.01043827]
[1745287137835,0.16270294,88358.0,88357.0,0.01043827]
[1745287137992,0.16170294,88358.0,88357.0,0.01043827]
[1745287138206,0.011319,88347.0,88341.0,0.34]
[1745287138406,0.01131823,88353.0,88343.0,0.35131951]
[1745287138778,0.28861651,88358.0,88349.0,0.01131874]
[1745287138932,0.01131772,88357.0,88353.0,0.01131823]
[1745287139143,0.01131785,88356.0,88351.0,0.01131849]
[1745287139314,0.01131785,88356.0,88354.0,0.00706801]
[1745287139543,0.01131785,88356.0,88355.0,0.00706801]
[1745287140381,0.01131785,88356.0,88355.0,0.01745243]
[1745287140589,0.01231785,88356.0,88355.0,0.01745243]
[1745287141329,0.01331785,88356.0,88355.0,0.01745243]
[1745287142440,0.01331785,88356.0,88351.0,0.0455705]
[1745287142663,0.01131797,88355.0,88351.0,0.05688899]
[1745287144033,0.01231797,88355.0,88351.0,0.05688899]
[1745287144289,0.0113181,88354.0,88350.0,0.01131861]
[1745287144492,0.002,88355.0,88352.0,0.23768364]
[1745287144807,0.002,88355.0,88351.0,0.01131849]
[1745287145012,0.01331797,88355.0,88351.0,0.01131849]
[1745287145211,0.01231797,88355.0,88351.0,0.01131849]
[1745287145413,0.0113181,88354.0,88350.0,0.01131861]
[1745287145668,0.0123181,88354.0,88351.0,0.34]
[1745287146257,0.22636469,88353.0,88351.0,0.34]
[1745287146463,0.0123181,88354.0,88351.0,0.34]
[1745287146661,0.0133181,88354.0,88351.0,0.34]
[1745287146892,0.0123181,88354.0,88350.0,0.35131861]
[1745287147281,0.0143181,88354.0,88350.0,0.35131861]
[1745287147654,0.002,88354.0,88353.0,0.34]
[1745287148077,0.003,88354.0,88353.0,0.34]
[1745287148462,0.001,88354.0,88353.0,0.34]
[1745287148676,0.002,88354.0,88353.0,0.34]
[1745287149570,0.003,88354.0,88353.0,0.34]
[1745287151688,0.003,88354.0,88353.0,0.45375594]
[1745287152451,0.002,88354.0,88353.0,0.46829679]
[1745287152613,0.001,88354.0,88353.0,0.46829679]
[1745287153015,0.000847,88358.0,88355.0,0.35131797]
[1745287153355,0.000847,88358.0,88357.0,0.34]
[1745287153511,0.000847,88358.0,88357.0,0.45375594]
[1745287154136,0.000847,88358.0,88357.0,0.46203493]
[1745287155308,0.001847,88358.0,88357.0,0.46203493]
[1745287157289,0.001847,88358.0,88357.0,0.47757578]
[1745287157498,0.001847,88358.0,88357.0,0.52667578]
[1745287157696,0.001847,88358.0,88357.0,0.57217578]
[1745287158177,0.000847,88358.0,88357.0,0.57217578]
[1745287158585,0.000847,88358.0,88357.0,0.57317578]
[1745287158785,0.000847,88358.0,88357.0,0.39315338]
[1745287159219,0.000847,88358.0,88357.0,0.23517578]
[1745287159542,0.000847,88358.0,88357.0,0.22063493]
[1745287159666,0.000847,88358.0,88357.0,0.12703493]
[1745287160204,0.000847,88358.0,88357.0,0.12603493]
[1745287160605,0.000847,88358.0,88357.0,0.12803493]
[1745287160812,0.000847,88358.0,88357.0,0.47029803]
[1745287161014,0.000847,88358.0,88357.0,0.46603493]
[1745287161338,0.000847,88358.0,88357.0,0.46803493]
[1745287161540,0.000847,88358.0,88357.0,0.47510071]
[1745287161720,0.000847,88358.0,88357.0,0.47210071]
[1745287161898,0.000847,88358.0,88357.0,0.47310071]
[1745287162544,0.000847,88358.0,88357.0,0.46603493]
[1745287163903,0.000847,88358.0,88357.0,0.35227899]
[1745287164688,0.000847,88358.0,88357.0,0.34927899]
[1745287165074,0.000847,88358.0,88357.0,0.35027899]
[1745287165860,0.000847,88358.0,88357.0,0.35127899]
[1745287166335,0.000847,88358.0,88357.0,0.01127899]
[1745287166942,0.048547,88358.0,88357.0,0.003]
[1745287167179,0.048547,88358.0,88357.0,0.002]
[1745287167535,0.048547,88358.0,88357.0,0.003]
[1745287167703,0.000847,88358.0,88357.0,0.002]
[1745287170841,0.000847,88358.0,88357.0,0.001]
[1745287171042,0.000847,88358.0,88357.0,0.00961832]
[1745287174009,0.000847,88358.0,88357.0,0.12563754]
[1745287176170,0.000847,88358.0,88357.0,0.46563754]
[1745287176307,0.000847,88358.0,88357.0,0.52067426]
[1745287177505,0.0008468,88371.0,88369.0,0.22632371]
[1745287178711,0.0018456,88370.0,88369.0,0.22632371]
[1745287179446,0.0028456,88370.0,88369.0,0.22632371]
[1745287180023,0.0028456,88370.0,88369.0,0.34007965]
[1745287180589,0.0028456,88370.0,88369.0,0.34714538]
[1745287180798,0.0018456,88370.0,88369.0,0.34714538]
[1745287181605,0.0018456,88370.0,88369.0,0.35757579]
[1745287181993,0.0008456,88370.0,88369.0,0.35757579]
[1745287186512,0.0008456,88370.0,88369.0,0.69757579]
[1745287195131,0.0008456,88370.0,88369.0,0.35749614]
[1745287198292,0.27346674,88370.0,88369.0,0.01749614]
[1745287198485,0.31956674,88370.0,88369.0,0.01749614]
[1745287198630,0.49242155,88370.0,88369.0,0.01749614]
[1745287198827,0.22636982,88351.0,88350.0,0.14501829]
[1745287199222,0.22636982,88351.0,88329.0,0.22642377]
[1745287199223,0.22641338,88334.0,88329.0,0.22642377]
[1745287199403,0.22641338,88334.0,88324.0,0.01132195]
[1745287199404,0.22641338,88334.0,88330.0,0.14501829]
[1745287199639,0.27271338,88334.0,88333.0,0.000137]
[1745287199978,0.38646932,88334.0,88333.0,0.000137]
[1745287200180,0.43156932,88334.0,88333.0,0.000137]
[1745287201415,0.43156932,88334.0,88333.0,0.002137]
[1745287201818,0.226398,88340.0,88333.0,0.002137]
[1745287201819,0.01131874,88349.0,88341.0,0.01131977]
[1745287202036,0.0914,88345.0,88342.0,0.22639223]
[1745287202198,0.64518428,88353.0,88346.0,0.22638025]
[1745287202413,0.4075,88353.0,88352.0,0.22636725]
[1745287202616,0.0008468,88371.0,88369.0,0.22632371]
[1745287202815,0.0004233,88391.0,88369.0,0.69688331]
[1745287202816,0.00069242,88385.0,88369.0,0.69688331]
[1745287203065,0.0004233,88391.0,88369.0,0.69688331]
[1745287203066,0.0004233,88391.0,88390.0,0.56626994]
[1745287203184,0.0004233,88391.0,88390.0,0.68002588]
[1745287203612,0.00032001,88399.0,88398.0,0.22624946]
[1745287203820,0.00520202,88404.0,88402.0,0.35454085]
[1745287204021,0.09213739,88412.0,88411.0,0.56621619]
[1745287204221,0.14855362,88417.0,88416.0,0.5662034]
[1745287204439,0.2374511,88440.0,88425.0,0.56618037]
[1745287204639,0.11778471,88426.0,88425.0,0.34]
[1745287205283,0.11778471,88426.0,88425.0,0.45375594]
[1745287205955,0.11878471,88426.0,88425.0,0.46829679]
[1745287206178,0.11878471,88426.0,88425.0,0.45375594]
[1745287206376,0.11878471,88426.0,88425.0,0.34]
[1745287206599,0.11878471,88426.0,88417.0,0.34]
[1745287206600,0.0113094,88422.0,88417.0,0.34]
[1745287206801,0.1300936,88426.0,88420.0,0.22619167]
[1745287206802,0.11878471,88426.0,88420.0,0.22619167]
[1745287206996,0.11878471,88426.0,88423.0,0.22618489]
[1745287207216,0.11978471,88426.0,88425.0,0.22618037]
[1745287207425,0.11878471,88426.0,88425.0,0.22618037]
[1745287207627,0.00145806,88426.0,88425.0,0.33993631]
[1745287207834,0.00145806,88426.0,88425.0,0.35547716]
[1745287208036,1e-08,88426.0,88425.0,0.35547716]
[1745287208352,1e-08,88426.0,88425.0,0.35447716]
[1745287208732,1e-08,88426.0,88425.0,0.35547716]
[1745287208877,1e-08,88426.0,88425.0,0.80459716]
[1745287209282,1e-08,88426.0,88425.0,0.84261638]
[1745287209699,1e-08,88426.0,88425.0,0.87657559]
[1745287210303,1e-08,88426.0,88425.0,0.84257638]
[1745287210508,1e-08,88429.0,88428.0,0.58071355]
[1745287210701,7.252e-05,88429.0,88428.0,0.82374792]
[1745287210910,7.252e-05,88429.0,88428.0,0.78978871]
[1745287211138,1e-08,88429.0,88428.0,0.78978871]
[1745287211338,1e-08,88429.0,88428.0,0.82374792]
[1745287211892,1e-08,88429.0,88428.0,0.87444792]
[1745287212174,0.0012456,88459.0,88446.0,0.56612667]
[1745287212356,0.0012456,88459.0,88446.0,0.67988261]
[1745287212595,0.00091822,88447.0,88446.0,0.34]
[1745287213361,0.00091822,88447.0,88446.0,0.45375594]
[1745287213646,7e-05,88476.0,88446.0,0.45375594]
[1745287213647,7e-05,88476.0,88446.0,0.56139679]
[1745287213814,1e-08,88462.0,88461.0,0.56608833]
[1745287213977,7e-05,88476.0,88473.0,0.56605766]
[1745287214177,7e-05,88476.0,88473.0,0.6798136]
[1745287214479,0.0004,88489.0,88486.0,0.01130122]
[1745287214730,0.0004,88489.0,88488.0,0.34]
[1745287215393,0.0004,88489.0,88488.0,0.45375594]
[1745287215791,0.0004,88489.0,88488.0,0.11375594]
[1745287215991,0.0034,88489.0,88488.0,0.11375594]
[1745287216416,0.0004,88489.0,88488.0,0.46829679]
[1745287217219,0.0004,88489.0,88488.0,0.50631601]
[1745287217417,0.0014,88489.0,88488.0,0.50631601]
[1745287217617,0.0044,88489.0,88488.0,0.50631601]
[1745287218155,0.2318218,88524.0,88488.0,0.50631601]
[1745287218156,0.01172032,88515.0,88509.0,0.01129828]
[1745287218354,0.00088012,88515.0,88512.0,0.0112979]
[1745287218531,0.00544036,88514.0,88513.0,0.45375594]
[1745287218717,0.00088012,88515.0,88514.0,0.34]
[1745287218926,0.00088012,88515.0,88495.0,0.01130007]
[1745287218927,0.01129917,88502.0,88495.0,0.01130007]
[1745287219121,0.2259938,88498.0,88496.0,0.11375594]
[1745287219328,0.2259887,88500.0,88492.0,0.23257618]
[1745287219532,0.01129956,88499.0,88493.0,0.12505626]
[1745287219791,0.01129943,88500.0,88495.0,0.01130007]
[1745287219992,0.01129943,88500.0,88492.0,0.22127573]
[1745287219993,0.01130007,88495.0,88492.0,0.22127573]
[1745287220263,0.01130007,88495.0,88466.0,0.0477]
[1745287220264,0.23731416,88491.0,88488.0,0.003]
[1745287220476,0.23731416,88491.0,88485.0,0.22127573]
[1745287220477,0.22602445,88486.0,88485.0,0.22127573]
[1745287220678,0.22602445,88486.0,88476.0,0.0113025]
[1745287220679,0.01030211,88479.0,88476.0,0.22127573]
[1745287220833,0.01030211,88479.0,88477.0,0.11375594]
[1745287221058,0.00544862,88479.0,88477.0,0.11375594]
[1745287221273,0.22607039,88469.0,88468.0,0.34]
[1745287221477,0.22607039,88469.0,88452.0,0.0008438]
[1745287221478,0.22609344,88459.0,88458.0,0.4167]
[1745287221701,0.01130403,88464.0,88458.0,0.53045594]
[1745287221997,0.01130518,88455.0,88452.0,0.0008438]
[1745287222198,0.22610622,88454.0,88453.0,0.11375594]
[1745287222360,0.22610622,88454.0,88452.0,0.00098094]
[1745287222767,0.22510622,88454.0,88452.0,0.00098094]
[1745287224224,0.0113039,88465.0,88453.0,0.11375594]
[1745287224418,0.05,88499.0,88453.0,0.11375594]
[1745287224419,0.01130211,88479.0,88473.0,0.22605661]
[1745287224625,0.23733648,88482.0,88478.0,0.35130224]
[1745287224854,0.15564,88490.0,88480.0,0.01130198]
[1745287224855,0.01130071,88490.0,88480.0,0.01130198]
[1745287225198,0.01130096,88488.0,88484.0,0.35130147]
[1745287225402,0.23732299,88487.0,88484.0,0.34]
[1745287226020,0.23732299,88487.0,88460.0,0.33076471]
[1745287226021,0.001,88465.0,88463.0,0.10888]
[1745287226213,0.001,88465.0,88464.0,0.6798366]
[1745287226334,0.001,88465.0,88463.0,0.22621911]
[1745287226541,0.01130122,88486.0,88480.0,0.22603872]
[1745287226858,0.00617192,88481.0,88480.0,0.67979466]
[1745287227253,0.01130147,88484.0,88481.0,0.01130186]
[1745287227885,0.01130135,88485.0,88482.0,0.01130173]
[1745287228058,0.23732161,88488.0,88484.0,0.01130147]
[1745287228243,0.0113002,88494.0,88485.0,0.01130135]
[1745287228448,0.22598183,88503.0,88492.0,0.01130045]
[1745287228449,0.23729621,88497.0,88492.0,0.01130045]
[1745287228672,0.0113002,88494.0,88490.0,0.01130071]
[1745287229178,0.01129994,88496.0,88491.0,0.23731226]
[1745287229377,0.01129994,88496.0,88491.0,0.01130058]
[1745287229581,0.01130007,88495.0,88491.0,0.01130058]
[1745287229852,0.002,88494.0,88491.0,0.23731146]
[1745287230145,0.002,88494.0,88493.0,0.56600657]
[1745287230383,0.002,88494.0,88493.0,0.67976251]
[1745287230519,0.005,88496.0,88493.0,0.69430336]
[1745287230859,0.005,88496.0,88495.0,0.58054231]
[1745287231092,0.005,88496.0,88495.0,0.69429825]
[1745287231876,0.002,88496.0,88495.0,0.76112275]
[1745287232075,0.0004228,88515.0,88514.0,0.56595295]
[1745287232237,0.0004228,88515.0,88514.0,0.67970889]
[1745287232449,0.00088012,88515.0,88514.0,0.67970889]
[1745287232650,0.00088012,88515.0,88514.0,0.69991857]
[1745287233470,0.00288012,88515.0,88514.0,0.69991857]
[1745287233679,0.00288012,88515.0,88514.0,0.56595295]
[1745287233885,0.00288012,88515.0,88514.0,0.70027859]
[1745287234101,0.00288012,88515.0,88514.0,0.34]
[1745287234296,0.009148,88515.0,88514.0,0.34]
[1745287234505,0.00288012,88515.0,88514.0,0.34]
[1745287235377,0.22983052,88515.0,88514.0,0.34]
[1745287235528,0.2360984,88515.0,88514.0,0.34]
[1745287235731,0.22596316,88510.0,88509.0,0.02070921]
[1745287236031,0.01129777,88513.0,88509.0,0.01129828]
[1745287236259,0.00626788,88510.0,88509.0,0.01129828]
[1745287236467,0.00626788,88510.0,88507.0,0.01129854]
[1745287236712,0.0112979,88512.0,88508.0,0.34]
[1745287236894,0.001,88510.0,88508.0,0.34]
[1745287237099,0.00626788,88511.0,88508.0,0.34]
[1745287237296,0.0112979,88512.0,88510.0,0.34]
[1745287237648,0.01129764,88514.0,88510.0,0.34]
[1745287238042,0.00188012,88515.0,88510.0,0.34]
[1745287238349,0.01129777,88513.0,88510.0,0.34]
[1745287238553,0.01129764,88514.0,88508.0,0.57726492]
[1745287238739,0.01129803,88511.0,88508.0,0.34]
[1745287238909,0.22596316,88510.0,88508.0,0.34]
[1745287239136,0.001,88514.0,88511.0,0.01129803]
[1745287239339,0.001,88514.0,88513.0,0.5659555]
[1745287239683,0.00188012,88515.0,88514.0,0.34]
[1745287239834,0.00188012,88515.0,88514.0,0.45375594]
[1745287240738,0.00188012,88515.0,88506.0,0.02022092]
[1745287240916,0.00188012,88515.0,88514.0,0.34]
[1745287241626,0.00388012,88515.0,88514.0,0.34]
[1745287242158,0.00288012,88515.0,88514.0,0.34]
[1745287242702,0.00288012,88515.0,88512.0,0.34]
[1745287242911,0.011148,88515.0,88512.0,0.34]
[1745287243047,0.011148,88515.0,88512.0,0.56595551]
[1745287243248,0.00488012,88515.0,88514.0,0.22595295]
[1745287243456,0.00288012,88515.0,88514.0,0.67970889]
[1745287243872,0.00088012,88515.0,88514.0,0.67970889]
[1745287244128,0.00288012,88515.0,88514.0,0.67970889]
[1745287244700,0.00488012,88515.0,88514.0,0.67970889]
[1745287245134,0.00388012,88515.0,88514.0,0.67970889]
[1745287245690,0.00488012,88515.0,88514.0,0.67970889]
[1745287247017,0.00483492,88515.0,88514.0,0.69524974]
[1745287247408,0.00483492,88515.0,88514.0,1.11194974]
[1745287247950,0.0004227,88536.0,88531.0,0.56590956]
[1745287248155,0.0004227,88536.0,88531.0,0.45375594]
[1745287248156,0.00162134,88532.0,88531.0,0.45375594]
[1745287248292,0.00162134,88532.0,88531.0,0.6796655]
[1745287248693,0.00162134,88532.0,88531.0,0.45375594]
[1745287248910,0.00162134,88532.0,88531.0,0.6796655]
[1745287249694,0.00883721,88532.0,88531.0,0.6796655]
[1745287249904,0.00262134,88532.0,88531.0,0.6796655]
[1745287250132,0.00262134,88532.0,88531.0,0.45375594]
[1745287250923,0.00883721,88532.0,88531.0,0.34]
[1745287251205,0.00262134,88532.0,88531.0,0.34]
[1745287251470,0.01129611,88526.0,88518.0,0.01129713]
[1745287251674,0.01129598,88527.0,88522.0,0.01129662]
[1745287251826,0.01129598,88527.0,88523.0,0.34]
[1745287252033,0.00621587,88526.0,88523.0,0.35129649]
[1745287252410,0.00621587,88526.0,88524.0,0.22592743]
[1745287252619,0.01129586,88528.0,88525.0,0.34]
[1745287252823,0.23213564,88527.0,88525.0,0.34]
[1745287253654,0.01129611,88526.0,88522.0,0.01129662]
[1745287253973,0.00621587,88527.0,88526.0,0.56592232]
[1745287254129,0.00162134,88532.0,88531.0,0.56590956]
[1745287254329,0.00162134,88532.0,88531.0,0.6796655]
[1745287254513,0.00162134,88532.0,88531.0,0.69420635]
[1745287256389,0.00162134,88532.0,88531.0,0.69620635]
[1745287256768,0.00162134,88532.0,88531.0,0.69520635]
[1745287257042,0.00162134,88532.0,88531.0,0.69620635]
[1745287257786,0.00162134,88532.0,88531.0,0.69520635]
[1745287257986,0.00162134,88532.0,88531.0,0.11475594]
[1745287258303,0.00783721,88532.0,88531.0,0.001]
[1745287258667,0.00783721,88532.0,88531.0,0.11475594]
[1745287258874,0.00783721,88532.0,88531.0,0.11375594]
[1745287259070,0.23374422,88532.0,88527.0,0.01129598]
[1745287259281,0.00783721,88532.0,88531.0,0.001]
[1745287259479,0.00783721,88532.0,88531.0,0.22690956]
[1745287259683,0.00783721,88532.0,88531.0,0.001]
[1745287260239,0.01129547,88531.0,88527.0,0.35097151]
[1745287260482,0.01129649,88523.0,88506.0,0.02098594]
[1745287260633,0.01129586,88528.0,88522.0,0.01129662]
[1745287260837,0.01129586,88528.0,88520.0,0.01129688]
[1745287261038,0.00638532,88527.0,88520.0,0.01129688]
[1745287261234,0.01129586,88528.0,88525.0,0.01129624]
[1745287261456,0.00638532,88527.0,88525.0,0.23722047]
[1745287261618,0.00638532,88527.0,88524.0,0.01129637]
[1745287262290,0.01129624,88525.0,88514.0,0.01229764]
[1745287262491,0.22590959,88531.0,88514.0,0.01229764]
[1745287262492,0.22631951,88536.0,88530.0,0.22591027]
[1745287262619,0.0004227,88536.0,88530.0,0.22591027]
[1745287262824,0.01129509,88534.0,88529.0,0.01129573]
[1745287263286,0.22631958,88536.0,88530.0,0.22591212]
[1745287263427,0.0004227,88536.0,88530.0,0.22591212]
[1745287263626,0.0004227,88536.0,88531.0,0.35454085]
[1745287263826,0.00262134,88532.0,88531.0,0.46829679]
[1745287264611,0.00462134,88532.0,88531.0,0.34]
[1745287265014,0.00362134,88532.0,88531.0,0.34]
[1745287265243,0.00162134,88532.0,88531.0,0.46829679]
[1745287265452,0.00362134,88532.0,88531.0,0.46829679]
[1745287265877,0.00262134,88532.0,88531.0,0.46829679]
[1745287266055,0.00162134,88532.0,88531.0,0.46829679]
[1745287266260,0.00362134,88532.0,88531.0,0.46829679]
[1745287267086,0.00362134,88532.0,88531.0,0.45375594]
[1745287267600,0.00262134,88532.0,88531.0,0.45375594]
[1745287268215,0.00162134,88532.0,88531.0,0.45375594]
[1745287268608,0.00262134,88532.0,88531.0,0.45375594]
[1745287272679,0.00262134,88532.0,88531.0,0.46829679]
[1745287277738,0.00262134,88532.0,88531.0,0.45375594]
[1745287278352,0.00262134,88532.0,88531.0,0.46829679]
[1745287278963,0.01129369,88545.0,88541.0,0.22588182]
[1745287279399,0.00626793,88544.0,88542.0,0.34]
[1745287279602,0.00626793,88544.0,88543.0,0.56587895]
[1745287279776,0.01129343,88547.0,88543.0,0.56587895]
[1745287279923,0.00626793,88544.0,88543.0,0.34]
[1745287280124,0.01129343,88547.0,88543.0,0.34]
[1745287280327,0.00626793,88544.0,88543.0,0.34]
[1745287280549,0.01129267,88553.0,88545.0,0.01129369]
[1745287280754,0.01129203,88558.0,88549.0,0.01129318]
[1745287280956,0.01129203,88558.0,88546.0,0.01129356]
[1745287280957,0.01129203,88558.0,88550.0,0.22585914]
[1745287281382,0.0112919,88559.0,88551.0,0.22585634]
[1745287281594,0.01129203,88558.0,88551.0,0.22585634]
[1745287281823,0.01129254,88554.0,88548.0,0.22586387]